fUSD/lending_fUSD_20260503
["ID","MTS","AMOUNT","RATE_DAILY","PERIOD"]
[421477333,1777740669000,-500.0,0.00032657,2]
[421477332,1777740669000,-1058.89,0.00032657,2]
[421477336,1777740669000,-500.0,0.00032657,2]
[421477334,1777740669000,-500.0,0.00032657,2]
[421477343,1777740669000,-765.21,0.00032657,2]
[421477335,1777740669000,-618.93,0.00032657,2]
[421477337,1777740669000,-500.0,0.00032657,2]
[421477338,1777740669000,-500.0,0.00032657,2]
[421477339,1777740669000,-3131.23,0.00032657,2]
[421477340,1777740669000,-500.0,0.00032657,2]
[421477341,1777740669000,-517.58,0.00032657,2]
[421477345,1777740669000,-500.0,0.00032657,2]
[421477344,1777740669000,-500.0,0.00032657,2]
[421477346,1777740669000,-500.0,0.00032657,2]
[421477347,1777740669000,-500.0,0.00032657,2]
[421477349,1777740669000,-500.0,0.00032657,2]
[421477350,1777740669000,-500.0,0.00032657,2]
[421477348,1777740669000,-500.0,0.00032657,2]
[421477351,1777740669000,-500.0,0.00032657,2]
[421477352,1777740669000,-251.75494598,0.00032657,2]
[421477353,1777740669000,-500.0,0.00032657,2]
[421477355,1777740669000,-500.0,0.00032657,2]
[421477356,1777740669000,-500.0,0.00032657,2]
[421477357,1777740669000,-779.5,0.00032657,2]
[421477359,1777740669000,-561.34,0.00032657,2]
[421477294,1777740669000,-500.0,0.00032657,2]
[421477358,1777740669000,-500.0,0.00032657,2]
[421477329,1777740669000,-542.32,0.00032657,2]
[421477327,1777740669000,-500.0,0.00032657,2]
[421477342,1777740669000,-500.0,0.00032657,2]
[421477328,1777740669000,-565.92,0.00032657,2]
[421477298,1777740669000,-531.92,0.00032657,2]
[421477325,1777740669000,-500.0,0.00032657,2]
[421477300,1777740669000,-500.0,0.00032657,2]
[421477297,1777740669000,-500.0,0.00032657,2]
[421477305,1777740669000,-500.0,0.00032657,2]
[421477306,1777740669000,-500.0,0.00032657,2]
[421477316,1777740669000,-606.54,0.00032657,2]
[421477317,1777740669000,-500.0,0.00032657,2]
[421477318,1777740669000,-500.0,0.00032657,2]
[421477309,1777740669000,-500.0,0.00032657,2]
[421477307,1777740669000,-1049.35,0.00032657,2]
[421477308,1777740669000,-500.0,0.00032657,2]
[421477310,1777740669000,-563.44,0.00032657,2]
[421477311,1777740669000,-500.0,0.00032657,2]
[421477301,1777740669000,-1160.62,0.00032657,2]
[421477315,1777740669000,-500.0,0.00032657,2]
[421477314,1777740669000,-500.0,0.00032657,2]
[421477326,1777740669000,-500.0,0.00032657,2]
[421477324,1777740669000,-748.06,0.00032657,2]
[421477331,1777740669000,-500.0,0.00032657,2]
[421477322,1777740669000,-507.81,0.00032657,2]
[421477330,1777740669000,-500.0,0.00032657,2]
[421477323,1777740669000,-500.0,0.00032657,2]
[421477321,1777740669000,-706.67,0.00032657,2]
[421477320,1777740669000,-500.0,0.00032657,2]
[421477319,1777740669000,-560.36,0.00032657,2]
[421477313,1777740669000,-500.0,0.00032657,2]
[421477312,1777740669000,-682.27,0.00032657,2]
[421477402,1777740670000,-500.0,0.00032657,2]
[421477403,1777740670000,-500.0,0.00032657,2]
[421477404,1777740670000,-500.0,0.00032657,2]
[421477388,1777740670000,-500.0,0.00032657,2]
[421477400,1777740670000,-500.0,0.00032657,2]
[421477399,1777740670000,-2456.95,0.00032657,2]
[421477398,1777740670000,-1173.7,0.00032657,2]
[421477390,1777740670000,-624.68,0.00032657,2]
[421477394,1777740670000,-625.48856597,0.00032657,2]
[421477396,1777740670000,-500.0,0.00032657,2]
[421477401,1777740670000,-500.0,0.00032657,2]
[421477397,1777740670000,-500.0,0.00032657,2]
[421477395,1777740670000,-523.46,0.00032657,2]
[421477412,1777740670000,-500.0,0.00032657,2]
[421477406,1777740670000,-734.68,0.00032657,2]
[421477408,1777740670000,-501.01,0.00032657,2]
[421477407,1777740670000,-1086.79,0.00032657,2]
[421477409,1777740670000,-508.38,0.00032657,2]
[421477411,1777740670000,-500.0,0.00032657,2]
[421477413,1777740670000,-842.36,0.00032657,2]
[421477410,1777740670000,-500.0,0.00032657,2]
[421477414,1777740670000,-500.0,0.00032657,2]
[421477415,1777740670000,-1784.19,0.00032657,2]
[421477416,1777740670000,-549.91,0.00032657,2]
[421477417,1777740670000,-753.25,0.00032657,2]
[421477389,1777740670000,-797.42,0.00032657,2]
[421477405,1777740670000,-500.0,0.00032657,2]
[421477392,1777740670000,-529.38563324,0.00032657,2]
[421477366,1777740670000,-500.0,0.00032657,2]
[421477386,1777740670000,-500.0,0.00032657,2]
[421477418,1777740670000,-500.0,0.00032657,2]
[421477361,1777740670000,-529.42,0.00032657,2]
[421477364,1777740670000,-500.0,0.00032657,2]
[421477360,1777740670000,-500.0,0.00032657,2]
[421477363,1777740670000,-500.0,0.00032657,2]
[421477367,1777740670000,-500.0,0.00032657,2]
[421477362,1777740670000,-500.0,0.00032657,2]
[421477365,1777740670000,-807.32,0.00032657,2]
[421477368,1777740670000,-500.0,0.00032657,2]
[421477372,1777740670000,-500.0,0.00032657,2]
[421477370,1777740670000,-755.44,0.00032657,2]
[421477371,1777740670000,-1667.09,0.00032657,2]
[421477373,1777740670000,-500.0,0.00032657,2]
[421477387,1777740670000,-860.23,0.00032657,2]
[421477378,1777740670000,-500.0,0.00032657,2]
[421477376,1777740670000,-977.68,0.00032657,2]
[421477379,1777740670000,-500.0,0.00032657,2]
[421477369,1777740670000,-500.0,0.00032657,2]
[421477377,1777740670000,-500.0,0.00032657,2]
[421477375,1777740670000,-500.0,0.00032657,2]
[421477380,1777740670000,-577.58,0.00032657,2]
[421477393,1777740670000,-500.0,0.00032657,2]
[421477382,1777740670000,-254.19316559,0.00032657,2]
[421477385,1777740670000,-500.0,0.00032657,2]
[421477381,1777740670000,-500.0,0.00032657,2]
[421477384,1777740670000,-604.96,0.00032657,2]
[421477383,1777740670000,-500.0,0.00032657,2]
[421477391,1777740670000,-500.0,0.00032657,2]
[421477374,1777740670000,-1060.23,0.00032657,2]
[421477420,1777740670000,-4974.81,0.00032657,2]
[421477419,1777740670000,-500.0,0.00032657,2]
[421477423,1777740670000,-405.25266292,0.00032657,2]
[421477466,1777740670000,-556.57,0.00032657,2]
[421477456,1777740670000,-622.06907009,0.00032657,2]
[421477455,1777740670000,-523.17663719,0.00032657,2]
[421477459,1777740670000,-500.0,0.00032657,2]
[421477457,1777740670000,-500.0,0.00032657,2]
[421477460,1777740670000,-500.0,0.00032657,2]
[421477458,1777740670000,-500.0,0.00032657,2]
[421477463,1777740670000,-602.56,0.00032657,2]
[421477461,1777740670000,-500.0,0.00032657,2]
[421477464,1777740670000,-500.0,0.00032657,2]
[421477465,1777740670000,-517.11,0.00032657,2]
[421477462,1777740670000,-500.0,0.00032657,2]
[421477467,1777740670000,-1045.22,0.00032657,2]
[421477469,1777740670000,-568.44,0.00032657,2]
[421477470,1777740670000,-2730.79,0.00032657,2]
[421477479,1777740670000,-500.0,0.00032657,2]
[421477477,1777740670000,-500.0,0.00032657,2]
[421477471,1777740670000,-4289.29,0.00032657,2]
[421477478,1777740670000,-500.0,0.00032657,2]
[421477472,1777740670000,-500.0,0.00032657,2]
[421477476,1777740670000,-764.49,0.00032657,2]
[421477468,1777740670000,-500.0,0.00032657,2]
[421477473,1777740670000,-509.17,0.00032657,2]
[421477475,1777740670000,-500.0,0.00032657,2]
[421477481,1777740670000,-500.0,0.00032657,2]
[421477480,1777740670000,-580.21069262,0.00032657,2]
[421477422,1777740670000,-516.33758272,0.00032657,2]
[421477451,1777740670000,-1058.93,0.00032657,2]
[421477454,1777740670000,-500.0,0.00032657,2]
[421477474,1777740670000,-500.0,0.00032657,2]
[421477453,1777740670000,-500.0,0.00032657,2]
[421477445,1777740670000,-500.0,0.00032657,2]
[421477425,1777740670000,-500.0,0.00032657,2]
[421477428,1777740670000,-490.91371485,0.00032657,2]
[421477421,1777740670000,-500.0,0.00032657,2]
[421477429,1777740670000,-500.0,0.00032657,2]
[421477424,1777740670000,-500.0,0.00032657,2]
[421477426,1777740670000,-500.0,0.00032657,2]
[421477430,1777740670000,-500.0,0.00032657,2]
[421477431,1777740670000,-500.0,0.00032657,2]
[421477439,1777740670000,-337.907769,0.00032657,2]
[421477440,1777740670000,-842.66,0.00032657,2]
[421477438,1777740670000,-533.87,0.00032657,2]
[421477443,1777740670000,-500.0,0.00032657,2]
[421477442,1777740670000,-500.0,0.00032657,2]
[421477427,1777740670000,-848.48,0.00032657,2]
[421477436,1777740670000,-862.29,0.00032657,2]
[421477441,1777740670000,-2676.11,0.00032657,2]
[421477449,1777740670000,-500.0,0.00032657,2]
[421477448,1777740670000,-500.0,0.00032657,2]
[421477446,1777740670000,-785.63,0.00032657,2]
[421477447,1777740670000,-500.0,0.00032657,2]
[421477452,1777740670000,-500.0,0.00032657,2]
[421477432,1777740670000,-613.60772504,0.00032657,2]
[421477434,1777740670000,-500.0,0.00032657,2]
[421477444,1777740670000,-541.03484576,0.00032657,2]
[421477433,1777740670000,-728.25,0.00032657,2]
[421477450,1777740670000,-742.17,0.00032657,2]
[421477437,1777740670000,-500.0,0.00032657,2]
[421477435,1777740670000,-890.68,0.00032657,2]
[421477524,1777740671000,-500.0,0.00032657,2]
[421477513,1777740671000,-500.0,0.00032657,2]
[421477508,1777740671000,-25647.26,0.00032657,2]
[421477522,1777740671000,-500.0,0.00032657,2]
[421477518,1777740671000,-796.01,0.00032657,2]
[421477514,1777740671000,-500.0,0.00032657,2]
[421477523,1777740671000,-908.85,0.00032657,2]
[421477519,1777740671000,-500.0,0.00032657,2]
[421477520,1777740671000,-547.54,0.00032657,2]
[421477516,1777740671000,-724.98,0.00032657,2]
[421477512,1777740671000,-238.43618989,0.00032657,2]
[421477517,1777740671000,-3472.2,0.00032657,2]
[421477526,1777740671000,-500.0,0.00032657,2]
[421477521,1777740671000,-500.0,0.00032657,2]
[421477515,1777740671000,-553.67,0.00032657,2]
[421477527,1777740671000,-500.0,0.00032657,2]
[421477533,1777740671000,-2458.58,0.00032657,2]
[421477535,1777740671000,-500.0,0.00032657,2]
[421477528,1777740671000,-500.0,0.00032657,2]
[421477532,1777740671000,-500.0,0.00032657,2]
[421477536,1777740671000,-500.0,0.00032657,2]
[421477534,1777740671000,-728.98,0.00032657,2]
[421477511,1777740671000,-735.07,0.00032657,2]
[421477530,1777740671000,-553.3,0.00032657,2]
[421477525,1777740671000,-15155.74,0.00032657,2]
[421477510,1777740671000,-500.0,0.00032657,2]
[421477493,1777740671000,-500.0,0.00032657,2]
[421477507,1777740671000,-568.62,0.00032657,2]
[421477537,1777740671000,-592.28,0.00032657,2]
[421477491,1777740671000,-568.25,0.00032657,2]
[421477483,1777740671000,-500.0,0.00032657,2]
[421477485,1777740671000,-566.11,0.00032657,2]
[421477484,1777740671000,-500.0,0.00032657,2]
[421477487,1777740671000,-1494.83,0.00032657,2]
[421477489,1777740671000,-500.0,0.00032657,2]
[421477488,1777740671000,-500.0,0.00032657,2]
[421477490,1777740671000,-500.0,0.00032657,2]
[421477486,1777740671000,-692.22,0.00032657,2]
[421477495,1777740671000,-517.88,0.00032657,2]
[421477509,1777740671000,-501.07,0.00032657,2]
[421477492,1777740671000,-500.0,0.00032657,2]
[421477496,1777740671000,-691.06,0.00032657,2]
[421477497,1777740671000,-9212.5,0.00032657,2]
[421477499,1777740671000,-563.67,0.00032657,2]
[421477498,1777740671000,-752.6,0.00032657,2]
[421477502,1777740671000,-500.0,0.00032657,2]
[421477500,1777740671000,-550.63,0.00032657,2]
[421477501,1777740671000,-500.0,0.00032657,2]
[421477504,1777740671000,-500.0,0.00032657,2]
[421477506,1777740671000,-746.13,0.00032657,2]
[421477503,1777740671000,-264.3465682,0.00032657,2]
[421477505,1777740671000,-596.49,0.00032657,2]
[421477494,1777740671000,-500.0,0.00032657,2]
[421477538,1777740671000,-533.83447842,0.00032657,2]
[421477482,1777740671000,-500.0,0.00032657,2]
[421477529,1777740671000,-500.0,0.00032657,2]
[421477567,1777740671000,-500.0,0.00032657,2]
[421477570,1777740671000,-718.35,0.00032657,2]
[421477569,1777740671000,-532.12,0.00032657,2]
[421477580,1777740671000,-579.77,0.00032657,2]
[421477571,1777740671000,-634.41,0.00032657,2]
[421477573,1777740671000,-500.0,0.00032657,2]
[421477575,1777740671000,-623.0013037,0.00032657,2]
[421477572,1777740671000,-500.0,0.00032657,2]
[421477574,1777740671000,-500.0,0.00032657,2]
[421477576,1777740671000,-500.0,0.00032657,2]
[421477579,1777740671000,-500.0,0.00032657,2]
[421477578,1777740671000,-381.81022907,0.00032657,2]
[421477582,1777740671000,-922.85,0.00032657,2]
[421477592,1777740671000,-500.0,0.00032657,2]
[421477581,1777740671000,-2406.39,0.00032657,2]
[421477583,1777740671000,-500.0,0.00032657,2]
[421477588,1777740671000,-656.62,0.00032657,2]
[421477585,1777740671000,-500.0,0.00032657,2]
[421477589,1777740671000,-500.0,0.00032657,2]
[421477590,1777740671000,-500.0,0.00032657,2]
[421477591,1777740671000,-719.76,0.00032657,2]
[421477584,1777740671000,-803.51,0.00032657,2]
[421477586,1777740671000,-719.82,0.00032657,2]
[421477587,1777740671000,-500.0,0.00032657,2]
[421477531,1777740671000,-500.0,0.00032657,2]
[421477568,1777740671000,-500.0,0.00032657,2]
[421477566,1777740671000,-500.0,0.00032657,2]
[421477577,1777740671000,-500.0,0.00032657,2]
[421477564,1777740671000,-388.12729056,0.00032657,2]
[421477548,1777740671000,-607.34,0.00032657,2]
[421477565,1777740671000,-500.0,0.00032657,2]
[421477550,1777740671000,-658.29,0.00032657,2]
[421477539,1777740671000,-500.0,0.00032657,2]
[421477549,1777740671000,-500.0,0.00032657,2]
[421477543,1777740671000,-500.0,0.00032657,2]
[421477542,1777740671000,-500.0,0.00032657,2]
[421477541,1777740671000,-500.0,0.00032657,2]
[421477540,1777740671000,-442.91111169,0.00032657,2]
[421477545,1777740671000,-500.0,0.00032657,2]
[421477547,1777740671000,-818.91,0.00032657,2]
[421477546,1777740671000,-500.0,0.00032657,2]
[421477562,1777740671000,-683.92,0.00032657,2]
[421477544,1777740671000,-500.0,0.00032657,2]
[421477556,1777740671000,-500.0,0.00032657,2]
[421477557,1777740671000,-500.0,0.00032657,2]
[421477551,1777740671000,-692.94,0.00032657,2]
[421477559,1777740671000,-1905.16,0.00032657,2]
[421477561,1777740671000,-1318.58,0.00032657,2]
[421477560,1777740671000,-245.46405561,0.00032657,2]
[421477555,1777740671000,-500.0,0.00032657,2]
[421477554,1777740671000,-500.0,0.00032657,2]
[421477552,1777740671000,-515.17285069,0.00032657,2]
[421477553,1777740671000,-555.07761561,0.00032657,2]
[421477563,1777740671000,-500.0,0.00032657,2]
[421477558,1777740671000,-807.96,0.00032657,2]
[421477633,1777740672000,-500.0,0.00032712,2]
[421477634,1777740672000,-609.82031752,0.00032712,2]
[421477635,1777740672000,-500.0,0.00032712,2]
[421477629,1777740672000,-500.0,0.00032712,2]
[421477641,1777740672000,-500.0,0.00032712,2]
[421477624,1777740672000,-500.0,0.00032711,2]
[421477630,1777740672000,-500.0,0.00032712,2]
[421477623,1777740672000,-500.0,0.00032711,2]
[421477621,1777740672000,-500.0,0.00032711,2]
[421477622,1777740672000,-500.0,0.00032711,2]
[421477638,1777740672000,-500.0,0.00032712,2]
[421477640,1777740672000,-1152.06,0.00032712,2]
[421477637,1777740672000,-625.39704719,0.00032712,2]
[421477646,1777740672000,-504.21,0.00032712,2]
[421477631,1777740672000,-500.0,0.00032712,2]
[421477636,1777740672000,-200.86974843,0.00032712,2]
[421477639,1777740672000,-500.0,0.00032712,2]
[421477642,1777740672000,-500.0,0.00032712,2]
[421477651,1777740672000,-653.64,0.00032712,2]
[421477650,1777740672000,-500.0,0.00032712,2]
[421477649,1777740672000,-500.0,0.00032712,2]
[421477653,1777740672000,-751.13,0.00032712,2]
[421477652,1777740672000,-500.0,0.00032712,2]
[421477648,1777740672000,-500.0,0.00032712,2]
[421477644,1777740672000,-500.0,0.00032712,2]
[421477627,1777740672000,-500.0,0.00032711,2]
[421477632,1777740672000,-500.0,0.00032712,2]
[421477625,1777740672000,-500.0,0.00032711,2]
[421477595,1777740672000,-500.0,0.00032657,2]
[421477620,1777740672000,-200.0,0.00032707,2]
[421477593,1777740672000,-534.99,0.00032657,2]
[421477594,1777740672000,-724.38,0.00032657,2]
[421477643,1777740672000,-533.47,0.00032712,2]
[421477596,1777740672000,-500.0,0.00032657,2]
[421477602,1777740672000,-506.66,0.00032657,2]
[421477600,1777740672000,-637.14,0.00032657,2]
[421477601,1777740672000,-568.51,0.00032657,2]
[421477598,1777740672000,-1529.27,0.00032657,2]
[421477604,1777740672000,-1558.0,0.00032664,15]
[421477597,1777740672000,-500.0,0.00032657,2]
[421477599,1777740672000,-2332.95,0.00032657,2]
[421477603,1777740672000,-500.0,0.00032657,2]
[421477605,1777740672000,-267.87471704,0.00032667,2]
[421477618,1777740672000,-1900.0,0.000327,11]
[421477614,1777740672000,-405.0,0.00032683,30]
[421477606,1777740672000,-1000.0,0.00032669,14]
[421477607,1777740672000,-504.64121284,0.00032673,5]
[421477609,1777740672000,-500.0,0.00032673,5]
[421477611,1777740672000,-150.0,0.00032673,5]
[421477613,1777740672000,-300.0,0.00032683,30]
[421477612,1777740672000,-500.0,0.00032673,5]
[421477608,1777740672000,-500.0,0.00032673,5]
[421477610,1777740672000,-500.0,0.00032673,5]
[421477617,1777740672000,-1200.0,0.000327,11]
[421477616,1777740672000,-184.68,0.000327,7]
[421477628,1777740672000,-527.14886781,0.00032712,2]
[421477626,1777740672000,-499.7249644,0.00032711,2]
[421477619,1777740672000,-1000.0,0.00032703,14]
[421477615,1777740672000,-851.0,0.00032683,30]
[421477645,1777740672000,-500.0,0.00032712,2]
[421477665,1777740672000,-500.0,0.00032712,2]
[421477654,1777740672000,-500.0,0.00032712,2]
[421477685,1777740672000,-503.61,0.00032712,2]
[421477683,1777740672000,-500.0,0.00032712,2]
[421477690,1777740672000,-500.0,0.00032712,2]
[421477687,1777740672000,-500.0,0.00032712,2]
[421477688,1777740672000,-667.69,0.00032712,2]
[421477692,1777740672000,-500.0,0.00032712,2]
[421477695,1777740672000,-500.0,0.00032712,2]
[421477694,1777740672000,-607.91154826,0.00032712,2]
[421477696,1777740672000,-500.0,0.00032712,2]
[421477693,1777740672000,-500.0,0.00032712,2]
[421477698,1777740672000,-500.0,0.00032712,2]
[421477699,1777740672000,-536.19463099,0.00032712,2]
[421477701,1777740672000,-531.92,0.00032712,2]
[421477700,1777740672000,-500.0,0.00032712,2]
[421477703,1777740672000,-500.0,0.00032712,2]
[421477697,1777740672000,-530.76178809,0.00032712,2]
[421477702,1777740672000,-500.0,0.00032712,2]
[421477705,1777740672000,-500.0,0.00032712,2]
[421477707,1777740672000,-714.19,0.00032712,2]
[421477709,1777740672000,-500.0,0.00032712,2]
[421477708,1777740672000,-500.0,0.00032712,2]
[421477647,1777740672000,-595.24,0.00032712,2]
[421477706,1777740672000,-500.0,0.00032712,2]
[421477710,1777740672000,-1049.35,0.00032712,2]
[421477712,1777740672000,-500.0,0.00032712,2]
[421477713,1777740672000,-563.44,0.00032712,2]
[421477711,1777740672000,-500.0,0.00032712,2]
[421477684,1777740672000,-500.0,0.00032712,2]
[421477682,1777740672000,-500.0,0.00032712,2]
[421477704,1777740672000,-1160.62,0.00032712,2]
[421477686,1777740672000,-638.93,0.00032712,2]
[421477689,1777740672000,-500.0,0.00032712,2]
[421477666,1777740672000,-500.0,0.00032712,2]
[421477655,1777740672000,-500.0,0.00032712,2]
[421477656,1777740672000,-500.0,0.00032712,2]
[421477660,1777740672000,-661.95,0.00032712,2]
[421477658,1777740672000,-500.0,0.00032712,2]
[421477664,1777740672000,-500.0,0.00032712,2]
[421477663,1777740672000,-272.31261786,0.00032712,2]
[421477661,1777740672000,-500.0,0.00032712,2]
[421477659,1777740672000,-500.0,0.00032712,2]
[421477662,1777740672000,-500.0,0.00032712,2]
[421477667,1777740672000,-446.21325539,0.00032712,2]
[421477678,1777740672000,-500.0,0.00032712,2]
[421477657,1777740672000,-500.0,0.00032712,2]
[421477679,1777740672000,-513.32992193,0.00032712,2]
[421477668,1777740672000,-500.0,0.00032712,2]
[421477691,1777740672000,-500.0,0.00032712,2]
[421477680,1777740672000,-500.0,0.00032712,2]
[421477677,1777740672000,-554.24,0.00032712,2]
[421477672,1777740672000,-608.3,0.00032712,2]
[421477675,1777740672000,-500.0,0.00032712,2]
[421477681,1777740672000,-1945.3,0.00032712,2]
[421477670,1777740672000,-558.92,0.00032712,2]
[421477671,1777740672000,-500.0,0.00032712,2]
[421477674,1777740672000,-500.0,0.00032712,2]
[421477673,1777740672000,-729.45,0.00032712,2]
[421477669,1777740672000,-267.82274009,0.00032712,2]
[421477676,1777740672000,-778.94,0.00032712,2]
[421477740,1777740673000,-500.0,0.00032712,2]
[421477741,1777740673000,-500.0,0.00032712,2]
[421477739,1777740673000,-500.0,0.00032712,2]
[421477742,1777740673000,-3131.23,0.00032712,2]
[421477744,1777740673000,-517.58,0.00032712,2]
[421477743,1777740673000,-500.0,0.00032712,2]
[421477745,1777740673000,-500.0,0.00032712,2]
[421477748,1777740673000,-500.0,0.00032712,2]
[421477746,1777740673000,-765.21,0.00032712,2]
[421477747,1777740673000,-500.0,0.00032712,2]
[421477752,1777740673000,-561.34583733,0.00032712,2]
[421477754,1777740673000,-500.0,0.00032712,2]
[421477753,1777740673000,-500.0,0.00032712,2]
[421477751,1777740673000,-500.0,0.00032712,2]
[421477749,1777740673000,-500.0,0.00032712,2]
[421477755,1777740673000,-500.0,0.00032712,2]
[421477757,1777740673000,-500.0,0.00032712,2]
[421477756,1777740673000,-572.23,0.00032712,2]
[421477759,1777740673000,-779.5,0.00032712,2]
[421477732,1777740673000,-542.32,0.00032712,2]
[421477750,1777740673000,-500.0,0.00032712,2]
[421477736,1777740673000,-500.0,0.00032712,2]
[421477723,1777740673000,-508.78149686,0.00032712,2]
[421477734,1777740673000,-500.0,0.00032712,2]
[421477715,1777740673000,-682.27,0.00032712,2]
[421477714,1777740673000,-500.0,0.00032712,2]
[421477716,1777740673000,-500.0,0.00032712,2]
[421477758,1777740673000,-500.0,0.00032712,2]
[421477717,1777740673000,-500.0,0.00032712,2]
[421477719,1777740673000,-606.54,0.00032712,2]
[421477718,1777740673000,-500.0,0.00032712,2]
[421477720,1777740673000,-500.0,0.00032712,2]
[421477724,1777740673000,-706.67,0.00032712,2]
[421477725,1777740673000,-507.81,0.00032712,2]
[421477722,1777740673000,-560.36,0.00032712,2]
[421477721,1777740673000,-500.0,0.00032712,2]
[421477730,1777740673000,-500.0,0.00032712,2]
[421477726,1777740673000,-500.0,0.00032712,2]
[421477728,1777740673000,-500.0,0.00032712,2]
[421477738,1777740673000,-618.93,0.00032712,2]
[421477729,1777740673000,-557.96783408,0.00032712,2]
[421477727,1777740673000,-748.06,0.00032712,2]
[421477737,1777740673000,-500.0,0.00032712,2]
[421477733,1777740673000,-500.0,0.00032712,2]
[421477731,1777740673000,-565.92,0.00032712,2]
[421477735,1777740673000,-1058.89,0.00032712,2]
[421477765,1777740673000,-256.45820985,0.00032712,2]
[421477806,1777740673000,-1086.79,0.00032712,2]
[421477762,1777740673000,-500.0,0.00032712,2]
[421477788,1777740673000,-860.23,0.00032712,2]
[421477789,1777740673000,-500.0,0.00032712,2]
[421477799,1777740673000,-500.0,0.00032712,2]
[421477791,1777740673000,-624.68,0.00032712,2]
[421477790,1777740673000,-797.42,0.00032712,2]
[421477794,1777740673000,-523.46,0.00032712,2]
[421477797,1777740673000,-1173.7,0.00032712,2]
[421477792,1777740673000,-500.0,0.00032712,2]
[421477793,1777740673000,-500.0,0.00032712,2]
[421477785,1777740673000,-604.96,0.00032712,2]
[421477795,1777740673000,-500.0,0.00032712,2]
[421477800,1777740673000,-500.0,0.00032712,2]
[421477801,1777740673000,-500.0,0.00032712,2]
[421477804,1777740673000,-500.0,0.00032712,2]
[421477803,1777740673000,-500.0,0.00032712,2]
[421477802,1777740673000,-500.0,0.00032712,2]
[421477808,1777740673000,-508.38,0.00032712,2]
[421477807,1777740673000,-501.01,0.00032712,2]
[421477805,1777740673000,-734.68,0.00032712,2]
[421477761,1777740673000,-561.34,0.00032712,2]
[421477798,1777740673000,-2456.95,0.00032712,2]
[421477780,1777740673000,-500.0,0.00032712,2]
[421477796,1777740673000,-500.0,0.00032712,2]
[421477782,1777740673000,-577.58,0.00032712,2]
[421477786,1777740673000,-500.0,0.00032712,2]
[421477760,1777740673000,-500.0,0.00032712,2]
[421477763,1777740673000,-529.42,0.00032712,2]
[421477764,1777740673000,-500.0,0.00032712,2]
[421477767,1777740673000,-807.32,0.00032712,2]
[421477766,1777740673000,-500.0,0.00032712,2]
[421477768,1777740673000,-500.0,0.00032712,2]
[421477770,1777740673000,-500.0,0.00032712,2]
[421477775,1777740673000,-500.0,0.00032712,2]
[421477771,1777740673000,-500.0,0.00032712,2]
[421477769,1777740673000,-500.0,0.00032712,2]
[421477772,1777740673000,-755.44,0.00032712,2]
[421477773,1777740673000,-1667.09,0.00032712,2]
[421477777,1777740673000,-500.0,0.00032712,2]